Cogmind - Beta 13 @@@ ROGUE MODE // 2024.05.05 @ 11:18:57 Player: Millea Result: Destroyed by P-80 Master with Gamma Rifle Performance ------------- Evolutions (9) 4500 Regions Visited (29) 5800 Robots Destroyed (385) 1925 Value Destroyed (20552) 20552 Prototype IDs (72) 1440 Alien Tech Used (0) 0 Bonus (7149) 7149 TOTAL SCORE: 41366 Bonus ------- High Alert Combat Kills 549 Follower Combat Kills 2253 Entered Garrisons 1000 Used RIF Installer 3000 Entered DSFs 1000 Aligned with FarCom 300 Met Data Miner 300 Met Zhirov 300 Built Enhanced Grunts 300 A7 Reached Mainframe 300 Met R17 at Cetus 500 Friendly Fire -2653 Cogmind --------- Core Integrity 0/1600 Matter 53/300 Energy 8/100 System Corruption 9% Temperature Cool (0) Movement Core (100) Ox1 Location -1/Access Parts ------- > --- POWER (2) -------- (None) > --- PROPULSION (6) --- (None) > --- UTILITY (11) ----- Advanced Terrain Scan Processor Improved Salvage Targeting Computer Relay Coupler [NC] (28) > --- WEAPON (6) ------- Improved Remote Datajack > --- INVENTORY (5) ---- Advanced Thermal Generator Advanced Cooling System Advanced Cooling System Relay Coupler [NC] (29) Relay Coupler [Grunt] (28) Peak State ------------ > --- POWER ------------ Quantum Reactor Quantum Reactor > --- PROPULSION ------- Heavy Siege Treads Improved Heavy Siege Treads Centrium Heavy Treads > --- UTILITY ---------- Advanced Power Amplifier Coolant Network Huge Storage Unit Advanced Terrain Scanner Advanced Terrain Scan Processor Improved Salvage Targeting Computer Advanced Salvage Targeting Computer Experimental Targeting Computer Core Analyzer Improved Focal Shield > --- WEAPON ----------- Heavy Wave Gun KE Penetrator KE Penetrator Railgun Railgun Tactical Quantum Warhead > --- INVENTORY -------- Biometal Medium Treads Improved Heavy Siege Treads Centrium Heavy Treads Centrium Heavy Treads Advanced Thermal Generator Advanced Cooling System Advanced Cooling System Centrium Medium Armor Plating Centrium Medium Armor Plating Advanced Powered Armor Advanced Thermal Shield Antimissile System Relay Coupler [NC] Relay Coupler [NC] Relay Coupler [Grunt] Advanced System Restoration Module Advanced System Restoration Module High-powered Tractor Beam Dimensional Node Initializer Heavy Wave Gun KE Penetrator Improved Remote Datajack [Rating: 187] Favorites ----------- Power Quantum Reactor Engine Improved Deuterium Engine Power Core Light Nuclear Core Reactor Quantum Reactor Propulsion Centrium Heavy Treads Treads Centrium Heavy Treads Leg Improved Titanium Leg Utility High-capacity Storage Unit Device Advanced Heat Sink Storage High-capacity Storage Unit Processor Experimental Targeting Computer Hackware Relay Coupler [NC] Protection Centrium Medium Armor Plating Weapon Railgun Energy Gun Cooled Pulse Rifle Energy Cannon Compact Ion Cannon Ballistic Gun Railgun Ballistic Cannon Antimatter Cannon Launcher Scatter Rocket Array Special Weapon Remote Datajack Impact Weapon Hammer Slashing Weapon Katana Special Melee Weapon Improved Datajack Build | -11 -10 -10 -10 -9 -8 -8 -8 -8 -7 -7 -6 -6 -6 -6 -5 -5 -5 -4 -4 -4 -4 -4 -4 -3 -3 -3 -2 -2 -1 ------- Run | Yrd Mat Min Exi Min Mat Gar Mat Gar Fac Gar Fac Low Low Dat Pro Fac DSF Fac Ext Cet Arc Hub Gar Res Gar Res Res DSF Acc Slots Evolved 18 | . . . . . 4 . . . 2 . 2 . . . . 2 . 2 . . . . . 2 . . 2 . 2 Power 1 | . . . . . . . . . . . . . . . . . . 1 . . . . . . . . . . . Propulsion 4 | . . . . . . . . . 2 . . . . . . 2 . . . . . . . . . . . . . Utility 9 | . . . . . 2 . . . . . 2 . . . . . . 1 . . . . . 2 . . 1 . 1 Weapon 4 | . . . . . 2 . . . . . . . . . . . . . . . . . . . . . 1 . 1 Parts Attached 377 | 6 1 . 2 2 11 16 1 21 64 42 12 3 . . 6 8 3 5 10 15 4 4 14 30 15 40 1 7 34 Power 33 | 1 . . . 2 1 1 1 1 6 3 . . . . . 1 . . . 3 . . 1 2 2 4 . 2 2 Engine 11 | 1 . . . 2 1 1 . 1 5 . . . . . . . . . . . . . . . . . . . . Core 3 | . . . . . . . 1 . 1 . . . . . . . . . . . . . . 1 . . . . . Reactor 19 | . . . . . . . . . . 3 . . . . . 1 . . . 3 . . 1 1 2 4 . 2 2 Propulsion 46 | 2 . . 2 . . . . 3 8 4 2 . . . . 1 . . . 6 . . 1 2 1 3 . 1 10 Treads 26 | 2 . . . . . . . . . 2 . . . . . . . . . 4 . . 1 2 1 3 . 1 10 Leg 20 | . . . 2 . . . . 3 8 2 2 . . . . 1 . . . 2 . . . . . . . . . Wheel . | . . . . . . . . . . . . . . . . . . . . . . . . . . . . . . Hover . | . . . . . . . . . . . . . . . . . . . . . . . . . . . . . . Flight . | . . . . . . . . . . . . . . . . . . . . . . . . . . . . . . Utility 158 | 1 1 . . . 5 6 . 13 26 11 6 2 . . . 3 1 5 6 2 2 3 8 15 7 22 . 3 10 Device 66 | . . . . . 2 . . 2 6 2 3 1 . . . 3 1 4 4 1 . 1 5 9 5 10 . 2 5 Storage 4 | 1 1 . . . . . . . . . . . . . . . . . . . . . . 1 . 1 . . . Processor 17 | . . . . . 1 . . 2 2 2 1 . . . . . . . . . . 2 . . . 6 . 1 . Hackware 38 | . . . . . . 5 . 7 13 6 2 . . . . . . 1 . . . . . 1 1 1 . . 1 Protection 33 | . . . . . 2 1 . 2 5 1 . 1 . . . . . . 2 1 2 . 3 4 1 4 . . 4 Artifact . | . . . . . . . . . . . . . . . . . . . . . . . . . . . . . . Weapon 140 | 2 . . . . 5 9 . 4 24 24 4 1 . . 6 3 2 . 4 4 2 1 4 11 5 11 1 1 12 Energy Gun 30 | 1 . . . . 4 3 . . 4 5 1 . . . . . . . . 1 . 1 . 2 1 3 . . 4 Energy Cannon 7 | . . . . . . . . . 3 1 1 . . . 2 . . . . . . . . . . . . . . Ballistic Gun 55 | 1 . . . . . 1 . 1 11 . 1 . . . 3 3 2 . 4 3 2 . 3 7 3 6 1 1 2 Ballistic Cannon 11 | . . . . . . . . . . 8 . . . . . . . . . . . . . . . . . . 3 Launcher 12 | . . . . . . . . . 1 3 . 1 . . 1 . . . . . . . . 2 1 1 . . 2 Special Weapon 15 | . . . . . . . . 1 5 5 1 . . . . . . . . . . . 1 . . 1 . . 1 Impact Weapon 2 | . . . . . 1 . . . . 1 . . . . . . . . . . . . . . . . . . . Slashing Weapon 6 | . . . . . . 3 . 2 . 1 . . . . . . . . . . . . . . . . . . . Piercing Weapon . | . . . . . . . . . . . . . . . . . . . . . . . . . . . . . . Special Melee Weapon 2 | . . . . . . 2 . . . . . . . . . . . . . . . . . . . . . . . Unidentified Prototypes 21 | . . . . . 1 . . . 1 6 . . . . . 2 . . . 3 . 1 . 1 . 6 . . . Corrupted Parts 6 | . . . . . . . . . . . . . . . . . . . . 3 . . 1 . 1 1 . . . System Corruption 17 | . . . . . . . . . . . . . . . . . . . . 10 . . 1 . 5 1 . . . Parts Lost 91 | . . . . 1 . 4 . 7 11 4 . . . . 1 . 1 . 3 1 3 . 2 10 2 3 . 3 35 Power 10 | . . . . 1 . 1 . 1 1 . . . . . . . . . . . . . 1 . . 2 . 1 2 Propulsion 15 | . . . . . . . . 1 3 2 . . . . . . . . . . . . . . . . . . 9 Utility 30 | . . . . . . . . 1 3 . . . . . . . 1 . 3 1 1 . 1 3 1 1 . 1 13 Weapon 36 | . . . . . . 3 . 4 4 2 . . . . 1 . . . . . 2 . . 7 1 . . 1 11 Highest Loss Streak 21 | . . . . 1 . 4 . 4 6 3 . . . . 1 . 1 . 1 1 3 . 1 3 2 2 . 2 21 To Critical Strikes 3 | . . . . . . . . . . . . . . . . . . . . 1 . . . . . . . . 2 Average Slot Usage (%) 89 | . 95 100 100 92 76 99 100 91 99 85 82 84 84 80 84 82 81 78 83 83 82 81 81 82 84 83 78 81 69 Engine 3 | . 14 14 14 7 9 8 7 3 6 . . 2 6 6 6 . . . 4 . . . . . . . . . . Reactor 3 | . . . . . . . . . . 2 6 2 . . . 4 5 5 5 9 10 10 9 5 5 8 8 8 6 Treads 5 | . 28 28 20 . . . . . . 9 8 . . . . . . . . 13 15 15 15 13 14 14 13 13 10 Leg 14 | . . . 7 28 18 18 18 18 29 10 4 13 13 13 13 17 17 15 15 1 . . . . . . . . . Device 7 | . . . . . 2 11 . . . 1 7 10 13 13 13 11 12 15 14 10 5 3 6 16 13 14 13 12 12 Storage 7 | . 23 28 28 28 15 9 9 9 7 7 6 6 6 6 6 5 5 5 5 5 5 5 5 4 4 4 4 4 3 Processor 7 | . . . . . 1 . . 12 2 4 13 13 13 13 13 11 8 5 5 5 5 13 11 9 9 14 17 21 17 Hackware 8 | . . . . . . 6 18 10 16 15 7 5 . . . . . 5 5 5 5 5 1 4 4 1 . . . Protection 3 | . . . . . 1 8 9 3 2 . . 2 6 6 6 5 5 5 5 9 14 6 8 4 9 3 . . . Energy Gun 7 | . 14 14 14 14 16 27 18 1 10 10 2 6 6 6 6 . . . . 2 . 2 1 3 3 3 4 4 6 Ballistic Gun 11 | . 14 14 14 14 6 2 9 7 11 . 2 3 . . 16 22 23 21 21 18 20 17 19 14 14 13 17 16 11 Ballistic Cannon 1 | . . . . . . . . . . 9 16 . . . . . . . . . . . . . . . . . . Special Weapon 2 | . . . . . . . . 1 4 3 2 6 6 6 . . . . . . . . . . . . . . . Slashing Weapon 1 | . . . . . . 1 . 15 1 1 . . . . . . . . . . . . . . . . . . . Naked Turns . | . . . . . . . . . . . . . . . . . . . . . . . . . . . . . . Heaviest Build 162 | 11 51 51 51 58 67 67 57 57 78 85 90 72 68 60 68 82 87 87 91 120 126 126 125 123 118 156 148 154 162 Greatest Support 240 | 40 40 40 60 60 60 60 60 60 88 150 150 60 60 60 60 90 90 90 90 240 240 240 240 240 240 240 235 235 225 Greatest Overweight (x) 2 | . 1 1 1 . 1 1 . 1 1 . 2 1 1 . 1 . . . 1 1 . . . . . . . . 1 Average Overweight (x) . | . . 1 . . . . . . . . . . . . . . . . . . . . . . . . . . . Largest Inventory Capacity 25 | 8 20 20 20 20 20 20 20 20 20 20 20 20 20 20 20 20 20 20 20 20 20 20 20 20 20 25 25 25 25 Average Capacity 20 | 7 16 20 20 20 20 20 20 20 20 20 20 20 20 20 20 20 20 20 20 20 20 20 20 20 20 24 25 25 22 Most Carried 25 | 6 7 9 14 14 15 20 20 20 20 20 20 20 20 20 20 20 20 18 20 20 20 20 20 20 20 25 23 25 25 Average Carried 19 | 3 6 7 9 12 13 16 20 19 18 19 19 19 19 20 19 19 19 18 19 19 18 18 19 18 19 24 23 24 20 Final Capacity 25 | 8 20 20 20 20 20 20 20 20 20 20 20 20 20 20 20 20 20 20 20 20 20 20 20 20 20 25 25 25 5 Final Carried 25 | 6 7 9 11 14 14 20 20 20 20 20 20 19 20 20 20 20 19 18 20 20 17 20 20 17 20 24 23 25 5 Class Distribution -------------------- 23% | Commander-Skirmisher 16% | Bothacker-Skirmisher 7% | Commander-Tank 7% | Scavenger-Skirmisher 7% | Bothacker-Gladiator 6% | Commander-Gunner 5% | Bothacker-Gunner 5% | Mutant 4% | Scavenger-Gunner 4% | Scavenger-Tank 4% | Gunner Dominant Class ---------------- Mutant | -10/Materials Mutant | -10/Mines Mutant | -10/Exiles Mutant | -9/Mines Mutant | -8/Materials Bothacker-Skirmisher | -8/Garrison Bothacker-Skirmisher | -8/Materials Bothacker-Gladiator | -8/Garrison Commander-Skirmisher | -7/Factory Commander-Skirmisher | -7/Garrison Commander-Gunner | -6/Factory Bothacker-Gunner | -6/Lower Caves Bothacker-Gunner | -6/Lower Caves Bothacker-Gunner | -6/Data Miner Gunner | -5/Proximity Caves Gunner | -5/Factory Gunner | -5/DSF Tank | -4/Factory Commander-Tank | -4/Extension Commander-Tank | -4/Cetus Scavenger-Tank | -4/Archives Scavenger-Skirmisher | -4/Hub_04(d) Scavenger-Tank | -4/Garrison Scavenger-Gunner | -3/Research Scavenger-Tank | -3/Garrison Bothacker-Skirmisher | -3/Research Scavenger-Skirmisher | -2/Research Scavenger-Skirmisher | -2/DSF Scavenger-Executioner | -1/Access Resources | -11 -10 -10 -10 -9 -8 -8 -8 -8 -7 -7 -6 -6 -6 -6 -5 -5 -5 -4 -4 -4 -4 -4 -4 -3 -3 -3 -2 -2 -1 ----------- Run | Yrd Mat Min Exi Min Mat Gar Mat Gar Fac Gar Fac Low Low Dat Pro Fac DSF Fac Ext Cet Arc Hub Gar Res Gar Res Res DSF Acc Matter Collected 13709 | 196 . 27 . 130 116 181 30 358 1973 911 199 38 202 . 601 198 305 . 1117 644 11 193 597 1921 897 1775 . 395 694 Remotely 3916 | . . . . . . . . . . . . . . . . . . . . 644 . . 597 1794 . 554 . . 327 Salvage Created 20432 | . 100 . . 132 12 880 75 771 2133 1411 77 204 265 . 1193 218 625 . 1076 432 121 169 735 3510 1200 3140 . 616 1337 Parts 1028 | . 9 4 . 5 . 32 6 55 116 44 5 16 6 . 57 3 30 . 55 20 5 8 36 169 64 156 . 45 82 Haulers Intercepted 9 | . . . . . . . . . 1 . . . . . . . 1 . . . . . . . . 4 . . 3 Recyclers Shooed 13 | . . . . . . . . . 4 . . . . . . . . . . . . . . 4 . 5 . . . Parts Field Recycled . | . . . . . . . . . . . . . . . . . . . . . . . . . . . . . . Retrieved Matter . | . . . . . . . . . . . . . . . . . . . . . . . . . . . . . . Parts Self-Destructed 63 | . . . . . . . . . . . . 10 6 . 47 . . . . . . . . . . . . . . Prevented . | . . . . . . . . . . . . . . . . . . . . . . . . . . . . . . Kills | -11 -10 -10 -10 -9 -8 -8 -8 -8 -7 -7 -6 -6 -6 -6 -5 -5 -5 -4 -4 -4 -4 -4 -4 -3 -3 -3 -2 -2 -1 ------- Run | Yrd Mat Min Exi Min Mat Gar Mat Gar Fac Gar Fac Low Low Dat Pro Fac DSF Fac Ext Cet Arc Hub Gar Res Gar Res Res DSF Acc Combat Hostiles Destroyed 283 | . 4 . . 3 . 20 1 17 37 18 2 5 7 . 30 1 8 . 12 6 3 2 9 32 17 23 . 6 20 Melee 15 | . . . . . . 2 . 13 . . . . . . . . . . . . . . . . . . . . . Guns 215 | . 4 . . 3 . 17 1 4 34 9 1 1 . . 20 1 8 . 12 6 3 2 9 29 13 23 . 6 9 Cannons 14 | . . . . . . . . . . 8 1 1 . . . . . . . . . . . . . . . . 4 AOE 35 | . . . . . . . . . 1 1 . 3 7 . 10 . . . . . . . . 3 4 . . . 6 Classes Destroyed 20 | . 2 1 . 1 . 4 . . 4 2 . . . . 1 . 1 . 2 . . . . . 2 . . . . Worker 27 | . . . . . . . . . 6 . . . . . . . . . 1 . . . . 4 . 5 . . 11 Builder 18 | . . . . . . . . . . . . . . . . . . . 2 . . . . 7 . 2 . . 7 Tunneler 3 | . . 1 . . 1 . . . . . . . . . . . . . . . . . . 1 . . . . . Hauler 11 | . . . . . . . . . 2 1 . . . . . . 1 . . . . . . . . 4 . . 3 Recycler 14 | . . . . . . . . . 1 . . . . . . 1 . . . . . . . 7 . 5 . . . Mechanic 1 | . . . . . . . . . . 1 . . . . . . . . . . . . . . . . . . . Operator 1 | . . . . . . . . . . . . . . . . . . . 1 . . . . . . . . . . Watcher 17 | . . . . . . . . . 7 . . . . . . . . . 3 . . . . 3 . 4 . . . Swarmer 53 | . 2 . . . . 3 1 8 9 1 . 5 1 . 14 . . . 2 . . . . . 4 3 . . . Grunt 106 | . 2 . . 2 . 8 . 2 8 8 . 1 4 . 15 . 5 . 2 . 2 . 4 18 9 4 . . 12 Brawler 8 | . . . . 1 . 1 . . 2 . . . 1 . . . 1 . 1 . . . . . . . . . 1 Duelist 4 | . . . . . . 1 . 3 . . . . . . . . . . . . . . . . . . . . . Protector 1 | . . . . . . . . . . . . . . . . . . . . . . . . . 1 . . . . Sentry 37 | . . . . . . 1 1 7 7 1 1 . 1 . 1 1 . . 7 . 1 . 2 2 1 3 . . . Demolisher 1 | . . . . . . . . . . . . . . . . . . . . . . . . . 1 . . . . Specialist 9 | . . . . . . . . . . 2 . . . . . . 1 . . . . . . . . . . 4 2 Hunter 27 | . . . . . . 3 . . 2 3 . 1 . . . . . . . . . 2 . 6 . 6 . 2 2 Programmer 34 | . . . . . . 3 . . 11 3 1 . . . 1 . . . . . . . 2 5 . 7 . . 1 Heavy 3 | . . . . . . . . . . . . . . . . . 1 . . . . . . . . . . . 2 Behemoth 4 | . . . . . . . . . . . . . . . 1 . . . . . . . 1 1 1 . . . . Cetus Guard 6 | . . . . . . . . . . . . . . . . . . . . 6 . . . . . . . . . Best Kill Streak 21 | . 4 1 . 3 1 4 1 3 7 5 1 3 3 . 11 1 4 . 3 3 2 2 8 12 5 8 . 3 21 Combat Bots Only 13 | . 4 . . 3 . 4 1 3 4 4 1 3 3 . 11 1 3 . 3 3 2 2 8 6 5 4 . 3 13 Max Kills in Single Turn 7 | . 1 1 . 1 1 2 1 2 5 2 1 4 3 . 5 1 3 . 2 1 1 1 1 5 4 3 . 1 7 Gunslinging 1 | . . . . . . 1 . . 1 . . . . . . . 1 . 1 . . . . 1 1 . . . 1 Exploded 5 | . . . . . . . . . 1 1 . 3 3 . 5 . . . . . . . . 2 4 . . . 3 Melee 1 | . . . . . . 1 . 1 . . . . . . . . . . . . . . . . . . . . . Uniques/NPCs Destroyed . | . . . . . . . . . . . . . . . . . . . . . . . . . . . . . . Combat | -11 -10 -10 -10 -9 -8 -8 -8 -8 -7 -7 -6 -6 -6 -6 -5 -5 -5 -4 -4 -4 -4 -4 -4 -3 -3 -3 -2 -2 -1 -------- Run | Yrd Mat Min Exi Min Mat Gar Mat Gar Fac Gar Fac Low Low Dat Pro Fac DSF Fac Ext Cet Arc Hub Gar Res Gar Res Res DSF Acc Hostile Shots Fired 2028 | . 22 . . 23 . 129 3 93 365 115 22 8 8 . 77 7 30 . 68 54 . 36 75 247 91 168 . 61 326 Missed 550 | . 7 . . 4 . 27 1 24 140 20 8 4 2 . 24 2 10 . 18 15 . 13 22 62 18 35 . 9 85 Damage Taken 30493 | . 150 . . 281 . 1298 24 990 2800 1551 105 106 113 . 1121 117 684 . 1008 439 1257 367 1288 3856 1453 2523 . 1612 7350 Core 3409 | . 11 . . 66 . 227 . 239 198 151 . 35 . . 104 22 . . 112 . 209 18 31 50 108 137 . 86 1605 Absorbed by Shields 1162 | . . . . . . 9 . . . . 24 . . . . . 10 . 242 286 . . . . 591 . . . . Reduced by Siege Mode 1959 | . . . . . . . . . . 80 . . . . . . . . . . . . 135 167 109 270 . 338 860 Ignored by Resistances 653 | . . . . . . . . . . . . . . . . . . . . . . . . . . 161 . 155 337 Regen/Repaired (Parts) 1955 | . . . . . . . . . 128 446 . 27 18 . 170 . 386 . 52 . . . . 728 . . . . . Core Remaining (%) 72 | 100 . . . 69 . . . 15 . 50 . . . . 83 . 97 . . . . . 67 . . 77 . 94 . Volleys Fired 840 | . 13 . . 11 3 42 5 29 178 73 4 3 4 . 40 8 17 . 51 25 4 8 21 97 44 96 . 15 49 Largest 6 | . 2 . . 2 4 4 3 3 4 4 4 3 3 . 4 4 4 . 4 4 4 4 4 4 4 4 . 5 6 Hottest 335 | . 60 . . 60 224 224 116 116 210 210 160 143 200 . 140 132 132 . 140 240 140 140 185 230 335 191 . 226 312 Shots Fired 2606 | . 25 . . 22 8 146 15 57 439 134 13 7 8 . 138 32 68 . 204 97 15 29 74 362 166 335 . 75 137 Gun 2400 | . 25 . . 22 8 146 15 47 366 57 3 4 2 . 130 32 68 . 204 97 15 29 74 358 165 334 . 75 124 Cannon 84 | . . . . . . . . . 14 43 10 2 3 . 5 . . . . . . . . . . . . . 7 Launcher 25 | . . . . . . . . . 3 4 . 1 3 . 3 . . . . . . . . 4 1 . . . 6 Special 97 | . . . . . . . . 10 56 30 . . . . . . . . . . . . . . . 1 . . . Kinetic 1789 | . 13 . . 11 2 7 5 20 235 38 10 2 . . 99 32 68 . 204 96 15 28 72 323 128 255 . 60 66 Thermal 695 | . 12 . . 11 6 139 10 27 145 62 3 4 5 . 36 . . . . 1 . 1 2 35 37 79 . 15 65 Explosive 25 | . . . . . . . . . 3 4 . 1 3 . 3 . . . . . . . . 4 1 . . . 6 Electromagnetic . | . . . . . . . . . . . . . . . . . . . . . . . . . . . . . . Robot Hit Streak 67 | . 6 . . 12 8 17 11 6 20 13 7 5 7 . 28 15 23 . 17 18 7 5 39 57 40 28 . 23 67 Robot Miss Streak 9 | . 3 . . 1 2 4 3 5 9 5 2 3 3 . 2 1 4 . 6 4 5 2 1 5 1 3 . 2 2 Penetration Max 2 | . . . . . . . . . 1 . 1 1 . . 1 . 1 . 1 1 . . 1 2 2 2 . 1 1 Secondary Targets 50 | . . . . . . 6 . 2 3 . . . . . 6 . 3 . 4 . . 1 4 8 3 4 . 2 4 Max Gunslinging Chain 2 | . . . . . . 1 . 1 1 . . . . . 1 . 1 . 1 . . 1 1 1 1 1 . 1 2 Autonomous 19 | . . . . . . . . . . 19 . . . . . . . . . . . . . . . . . . . Shots Hit Robots 1957 | . 13 . . 20 5 116 15 83 273 120 8 4 6 . 99 28 50 . 134 72 9 19 66 264 140 244 . 61 108 Core Hits 906 | . 4 . . 6 2 36 3 24 104 43 4 12 32 . 83 5 20 . 48 28 4 7 26 151 58 98 . 20 88 Critical Kills 11 | . . . . . . . . . 2 . . 1 . . 3 . 2 . . 1 . . . . . 2 . . . Critical Parts Destroyed 41 | . . . . . . . . . 5 . 1 . . . 4 . 3 . 6 4 . 1 3 5 3 5 . . 1 Critical Strikes 82 | . . . . 1 3 12 1 . 10 3 1 1 . . 7 . 5 . 7 6 . 1 3 5 3 8 . . 5 Burn 22 | . . . . . 3 11 1 . 3 . . . . . . . . . . . . . . . . . . . 4 Meltdown 1 | . . . . . . . . . 1 . . . . . . . . . . . . . . . . . . . . Destroy 55 | . . . . 1 . . . . 6 . 1 1 . . 7 . 5 . 7 6 . 1 3 5 3 8 . . 1 Blast 1 | . . . . . . . . . . 1 . . . . . . . . . . . . . . . . . . . Sever 3 | . . . . . . 1 . . . 2 . . . . . . . . . . . . . . . . . . . Melee Attacks 155 | . . . . . . 40 3 83 . 29 . . . . . . . . . . . . . . . . . . . Impact . | . . . . . . . . . . . . . . . . . . . . . . . . . . . . . . Slashing 92 | . . . . . . 10 . 53 . 29 . . . . . . . . . . . . . . . . . . . Piercing . | . . . . . . . . . . . . . . . . . . . . . . . . . . . . . . Sneak Attacks 31 | . . . . . . 16 1 14 . . . . . . . . . . . . . . . . . . . . . Combat Hostiles . | . . . . . . . . . . . . . . . . . . . . . . . . . . . . . . Follow-up Attacks 5 | . . . . . . . . 5 . . . . . . . . . . . . . . . . . . . . . Damage Inflicted 57606 | . 166 8 . 243 95 1701 174 1635 5742 4413 229 271 1000 . 3528 681 1331 . 3943 1961 236 359 1958 8397 4012 7253 . 1565 6705 Guns 44362 | . 166 . . 243 95 1604 174 378 4965 1248 46 32 64 . 2259 681 1331 . 3943 1961 236 359 1958 7291 3754 7125 . 1565 2884 Cannons 1812 | . . . . . . . . . 278 886 183 26 60 . 27 . . . . . . . . . . . . . 352 Explosions 7813 | . . . . . . . . . 438 242 . 213 876 . 1242 . . . . . . . . 1075 258 . . . 3469 Melee 3391 | . . . . . . 97 . 1257 . 2037 . . . . . . . . . . . . . . . . . . . Ramming 228 | . . 8 . . . . . . 61 . . . . . . . . . . . . . . 31 . 128 . . . Kinetic 34221 | . 71 . . 139 30 48 71 165 3023 828 172 13 . . 1797 681 1331 . 3943 1961 236 359 1906 6601 2737 5356 . 1198 1555 Thermal 11953 | . 95 . . 104 65 1556 103 213 2220 1306 57 45 124 . 489 . . . . . . . 52 690 1017 1769 . 367 1681 Explosive 7779 | . . . . . . . . . 404 242 . 213 876 . 1242 . . . . . . . . 1075 258 . . . 3469 Electromagnetic 34 | . . . . . . . . . 34 . . . . . . . . . . . . . . . . . . . . Impact . | . . . . . . . . . . . . . . . . . . . . . . . . . . . . . . Slashing 3391 | . . . . . . 97 . 1257 . 2037 . . . . . . . . . . . . . . . . . . . Piercing . | . . . . . . . . . . . . . . . . . . . . . . . . . . . . . . Highest Corruption 24 | . . . . . . 5 5 5 4 2 . . . . 1 . . . . 10 10 12 16 4 9 24 . 6 9 Average Corruption 6 | . . . . . . 4 5 5 2 2 . . . . 1 . . . . 6 10 10 15 2 6 15 . 3 5 Corruption Purged 16 | . . . . . . . . . 9 . . . . . . . . . . . . . . . . 7 . . . Corruption Blocked . | . . . . . . . . . . . . . . . . . . . . . . . . . . . . . . Effects 354 | . . . . . . 8 4 42 55 28 . . . . 3 . . . . 25 7 9 18 22 21 107 . 4 1 Message Errors 82 | . . . . . . 2 2 11 16 5 . . . . 2 . . . . 6 1 2 1 3 4 26 . 1 . Matter Fused 92 | . . . . . . . 2 10 16 9 . . . . . . . . . 5 3 3 9 8 8 16 . 2 1 Heat Flow Errors 28 | . . . . . . 2 . 3 2 4 . . . . . . . . . 3 1 2 . 4 . 7 . . . Energy Discharges 35 | . . . . . . 1 . 5 3 1 . . . . 1 . . . . 2 1 . . . 4 16 . 1 . Parts Rejected 2 | . . . . . . . . . . . . . . . . . . . . . . . . 1 1 . . . . Parts Fused 2 | . . . . . . . . . . . . . . . . . . . . . . . . . . 2 . . . Data Loss (minor) 39 | . . . . . . 1 . 8 6 3 . . . . . . . . . 4 . 1 2 1 1 12 . . . Data Loss (major) 16 | . . . . . . . . 1 4 2 . . . . . . . . . 3 . 1 1 . . 4 . . . Misfires 22 | . . . . . . 1 . 2 5 3 . . . . . . . . . 1 1 . 1 2 1 5 . . . Alerts 16 | . . . . . . 1 . 2 . 1 . . . . . . . . . . . . 2 2 . 8 . . . Weapon Failures 20 | . . . . . . . . . 3 . . . . . . . . . . 1 . . 2 1 2 11 . . . Overload Shots 8 | . . . . . . . . . . . . . 1 . . . . . . 1 . . . . 6 . . . . Overflow Damage 406 | . . . . . . . . 22 71 51 . . 3 . 9 . . . . . . . . 4 . 20 . . 226 Projectiles 12 | . . . . . . . . . 3 9 . . . . . . . . . . . . . . . . . . . Explosions 352 | . . . . . . . . . 68 42 . . 3 . 9 . . . . . . . . 4 . . . . 226 Melee 42 | . . . . . . . . 22 . . . . . . . . . . . . . . . . . 20 . . . Knockbacks 11 | . . . . . . . . . 1 8 . . . . . . . . . . . . . . . 1 . . 1 Impact 2 | . . . . . . . . . 1 . . . . . . . . . . . . . . . . 1 . . . Kinetic 9 | . . . . . . . . . . 8 . . . . . . . . . . . . . . . . . . 1 Secondary . | . . . . . . . . . . . . . . . . . . . . . . . . . . . . . . Self-Inflicted Damage 597 | . . . . . . . . . 59 . . 26 . . 38 . . . . . . . . 389 31 . . . 54 Shots 23 | . . . . . . . . . 1 . . 1 . . 2 . . . . . . . . 16 2 . . . 1 Rammed 11 | . . 1 . . . . . . . . . . . . . . . . . . . . . 3 . 7 . . . Targets Rammed 18 | . . 2 . . . . . . 5 . . . . . . . . . . . . . . 4 . 7 . . . Kicked 5 | . . . . . . . . . 5 . . . . . . . . . . . . . . . . . . . . Crushed 2 | . . 1 . . . . . . . . . . . . . . . . . . . . . 1 . . . . . Highest Temperature 601 | . 66 . . 19 111 346 157 300 333 601 74 . 88 . 241 . 4 . 325 312 86 168 397 312 326 200 . . 40 Average Temperature 87 | . 41 . . 8 56 109 71 117 63 154 34 . 32 . 73 . 4 . 66 72 22 38 184 84 116 34 . . 18 Received Heat Transfer 3688 | . 66 . . 84 . 225 27 225 576 216 35 6 72 . 345 . 147 . 176 . . . 208 492 209 93 . . 486 Effects 24 | . . . . . . 2 . . 2 10 . . . . . . . . 2 . . . 7 . 1 . . . . Shutdowns 2 | . . . . . . . . . . 1 . . . . . . . . . . . . 1 . . . . . . Energy Bleed 3 | . . . . . . . . . . . . . . . . . . . . . . . 2 . 1 . . . . Interference 13 | . . . . . . 2 . . 1 4 . . . . . . . . 2 . . . 4 . . . . . . Matter Decay 1 | . . . . . . . . . . 1 . . . . . . . . . . . . . . . . . . . Short Circuit 2 | . . . . . . . . . . 2 . . . . . . . . . . . . . . . . . . . Damage (minor) 1 | . . . . . . . . . 1 . . . . . . . . . . . . . . . . . . . . Damage (major) 2 | . . . . . . . . . . 2 . . . . . . . . . . . . . . . . . . . Siege Activations 25 | . . . . . . . . . . 3 . . . . . . . . . . . . 1 6 4 6 . 3 2 Total Turns 677 | . . . . . . . . . . 39 . . . . . . . . . . . . 115 114 84 173 . 59 93 Longest Duration 115 | . . . . . . . . . . 18 . . . . . . . . . . . . 115 48 50 38 . 27 69 Robots Corrupted . | . . . . . . . . . . . . . . . . . . . . . . . . . . . . . . Combat Hostiles . | . . . . . . . . . . . . . . . . . . . . . . . . . . . . . . Parts Fried 1 | . . . . . . . . . . . . . . . . . . . . 1 . . . . . . . . . Impact Corruptions 1 | . . . . . . . . . . . . . . . . . . . . . . . . . . 1 . . . Robots Melted 4 | . . . . . . 1 . . 2 . . . . . . . . . . . . . . . . . . . 1 Combat Hostiles 4 | . . . . . . 1 . . 2 . . . . . . . . . . . . . . . . . . . 1 Parts Melted 54 | . . . . . 1 11 . 1 11 3 1 . . . 3 . . . . . . . 2 2 . 6 . 3 10 Heat Transferred 19419 | . 200 . . 225 358 3654 285 472 4339 1736 74 74 161 . 925 . . . . . . . 74 925 922 2035 . 481 2479 Parts Sabotaged . | . . . . . . . . . . . . . . . . . . . . . . . . . . . . . . Parts Stolen . | . . . . . . . . . . . . . . . . . . . . . . . . . . . . . . Parts Stripped . | . . . . . . . . . . . . . . . . . . . . . . . . . . . . . . Power Chain Reactions . | . . . . . . . . . . . . . . . . . . . . . . . . . . . . . . Alert | -11 -10 -10 -10 -9 -8 -8 -8 -8 -7 -7 -6 -6 -6 -6 -5 -5 -5 -4 -4 -4 -4 -4 -4 -3 -3 -3 -2 -2 -1 ------- Run | Yrd Mat Min Exi Min Mat Gar Mat Gar Fac Gar Fac Low Low Dat Pro Fac DSF Fac Ext Cet Arc Hub Gar Res Gar Res Res DSF Acc Peak Influence 1127 | . 125 53 . 60 43 1127 679 1075 564 804 422 . . . . 72 101 62 300 169 159 78 192 264 452 272 36 114 232 Initial 564 | . . 48 . . 23 30 549 441 564 245 422 . . . . 49 . 52 30 59 22 10 25 108 109 254 36 29 61 Average 233 | . 46 50 . 44 28 599 637 858 120 532 291 . . . . 63 60 58 116 82 52 42 135 132 311 128 36 73 87 Maximum Alert Level 4 | . . . . . . 4 2 3 2 3 2 . . . . . . . 1 . . . . 1 2 1 . . 1 Low Security (%) 64 | 100 100 100 . 100 100 15 . . 82 . 26 . . . . 100 100 100 76 100 100 100 100 79 28 79 100 100 92 Level 1 15 | . . . . . . 16 . . 17 21 36 . . . . . . . 23 . . . . 20 47 20 . . 7 Level 2 9 | . . . . . . 28 100 19 . 54 36 . . . . . . . . . . . . . 23 . . . . Level 3 9 | . . . . . . 34 . 80 . 24 . . . . . . . . . . . . . . . . . . . Level 4 . | . . . . . . 5 . . . . . . . . . . . . . . . . . . . . . . . Level 5 . | . . . . . . . . . . . . . . . . . . . . . . . . . . . . . . High Security . | . . . . . . . . . . . . . . . . . . . . . . . . . . . . . . Max Security . | . . . . . . . . . . . . . . . . . . . . . . . . . . . . . . Sterilizations 1 | . . . . . . . . . . . . . . . . . 1 . . . . . . . . . . . . Squads Dispatched 45 | . . . . . 4 . . . 16 . 2 . . . 1 . 1 . 1 . . 2 . 7 . 4 . 2 5 Investigation 6 | . . . . . . . . . 2 . 1 . . . 1 . . . . . . . . 1 . 1 . . . Extermination 19 | . . . . . . . . . 11 . 1 . . . . . . . . . . . . 3 . 3 . . 1 Reinforcement 15 | . . . . . 1 . . . 2 . . . . . . . 1 . 1 . . 2 . 2 . . . 2 4 Assault . | . . . . . . . . . . . . . . . . . . . . . . . . . . . . . . Garrison 5 | . . . . . 3 . . . 1 . . . . . . . . . . . . . . 1 . . . . . Intercept . | . . . . . . . . . . . . . . . . . . . . . . . . . . . . . . Searches Triggered . | . . . . . . . . . . . . . . . . . . . . . . . . . . . . . . Construction Impeded 3 | . . . . . . . . . 1 . . . . . . . . . . . . . . 1 . . . . 1 Haulers Reinforced . | . . . . . . . . . . . . . . . . . . . . . . . . . . . . . . Active Scanning Responses . | . . . . . . . . . . . . . . . . . . . . . . . . . . . . . . Cargo Convoy Interrupts . | . . . . . . . . . . . . . . . . . . . . . . . . . . . . . . Stealth | -11 -10 -10 -10 -9 -8 -8 -8 -8 -7 -7 -6 -6 -6 -6 -5 -5 -5 -4 -4 -4 -4 -4 -4 -3 -3 -3 -2 -2 -1 --------- Run | Yrd Mat Min Exi Min Mat Gar Mat Gar Fac Gar Fac Low Low Dat Pro Fac DSF Fac Ext Cet Arc Hub Gar Res Gar Res Res DSF Acc Distress Signals 12 | . 1 . . . 1 . 1 . 1 . . . . . . . . . 1 2 . 2 . 1 . 1 . . 1 Communications Jammed 8 | . . . . . . . . . . . . . . . . . . . 8 . . . . . . . . . . Distress Signals 8 | . . . . . . . . . . . . . . . . . . . 8 . . . . . . . . . . Times Spotted 443 | . 6 . . 3 2 32 6 37 68 32 5 7 8 . 34 . 7 1 25 7 26 6 12 39 14 30 . 6 30 Peak Tracking Total 16 | . 3 . . 3 1 5 3 5 5 9 3 3 4 . 8 1 3 1 4 5 16 4 11 8 5 5 . 3 12 Tactical Retreats 10 | . . . . . . . . . . 2 . 1 . . . . . . 1 . . 1 2 . . 1 . 1 1 Traps | -11 -10 -10 -10 -9 -8 -8 -8 -8 -7 -7 -6 -6 -6 -6 -5 -5 -5 -4 -4 -4 -4 -4 -4 -3 -3 -3 -2 -2 -1 ------- Run | Yrd Mat Min Exi Min Mat Gar Mat Gar Fac Gar Fac Low Low Dat Pro Fac DSF Fac Ext Cet Arc Hub Gar Res Gar Res Res DSF Acc Traps Triggered 31 | . . . . . . 6 . 7 7 . . . . . . . . . 3 . . 1 . 1 . 5 . 1 . Indirectly . | . . . . . . . . . . . . . . . . . . . . . . . . . . . . . . Trap Hack Attempts 1 | . . . . . . 1 . . . . . . . . . . . . . . . . . . . . . . . Triggered . | . . . . . . . . . . . . . . . . . . . . . . . . . . . . . . Disarmed . | . . . . . . . . . . . . . . . . . . . . . . . . . . . . . . Reprogrammed . | . . . . . . . . . . . . . . . . . . . . . . . . . . . . . . Reused . | . . . . . . . . . . . . . . . . . . . . . . . . . . . . . . Traps Extracted . | . . . . . . . . . . . . . . . . . . . . . . . . . . . . . . Installed . | . . . . . . . . . . . . . . . . . . . . . . . . . . . . . . Triggered . | . . . . . . . . . . . . . . . . . . . . . . . . . . . . . . Machines | -11 -10 -10 -10 -9 -8 -8 -8 -8 -7 -7 -6 -6 -6 -6 -5 -5 -5 -4 -4 -4 -4 -4 -4 -3 -3 -3 -2 -2 -1 ---------- Run | Yrd Mat Min Exi Min Mat Gar Mat Gar Fac Gar Fac Low Low Dat Pro Fac DSF Fac Ext Cet Arc Hub Gar Res Gar Res Res DSF Acc Machines Disabled 32 | . . . . . . 5 . 5 5 3 . . . . 2 . . . 1 2 1 1 . . 4 . . 1 2 Max in Single Turn 2 | . . . . . . 1 . 1 2 1 . . . . 1 . . . . 1 . 1 . . 1 . . 1 1 Garrison Access 5 | . . . . . . . . . 3 . . . . . . . . . . . . . . . . 2 . . . Garrison Relay 16 | . . . . . . 5 . 5 . 3 . . . . . . . . . . . . . . 3 . . . . Energy Cycler 1 | . . . . . . . . . . . . . . . . . . . . . . . . . . . . . 1 Machines Repaired . | . . . . . . . . . . . . . . . . . . . . . . . . . . . . . . Machines Dismantled . | . . . . . . . . . . . . . . . . . . . . . . . . . . . . . . Machines Sabotaged . | . . . . . . . . . . . . . . . . . . . . . . . . . . . . . . Overloaded Fab Kills . | . . . . . . . . . . . . . . . . . . . . . . . . . . . . . . Hacking | -11 -10 -10 -10 -9 -8 -8 -8 -8 -7 -7 -6 -6 -6 -6 -5 -5 -5 -4 -4 -4 -4 -4 -4 -3 -3 -3 -2 -2 -1 --------- Run | Yrd Mat Min Exi Min Mat Gar Mat Gar Fac Gar Fac Low Low Dat Pro Fac DSF Fac Ext Cet Arc Hub Gar Res Gar Res Res DSF Acc Machines Accessed 78 | . 6 . 2 1 1 3 1 2 22 1 2 . 1 4 2 2 . 2 7 1 . 2 1 4 1 8 2 . . Terminals 47 | . 6 . . 1 . 3 . 2 10 1 1 . 1 . 1 1 . 2 6 1 . 1 1 1 1 5 2 . . Fabricators . | . . . . . . . . . . . . . . . . . . . . . . . . . . . . . . Repair Stations 5 | . . . . . . . . . 3 . . . . . . . . . . . . . . 2 . . . . . Recycling Units 6 | . . . . . . . . . 3 . 1 . . . . 1 . . 1 . . . . . . . . . . Scanalyzers 3 | . . . . . . . . . 2 . . . . . . . . . . . . . . . . 1 . . . Garrison Access 10 | . . . . . 1 . 1 . 4 . . . . . . . . . . . . 1 . 1 . 2 . . . Total Hacks 213 | . 19 . 2 2 2 6 1 5 76 4 5 . 1 29 4 2 . 4 19 2 . 3 2 10 2 10 3 . . Successful 127 | . 13 . 2 1 1 2 1 . 49 1 . . 1 29 4 1 . 3 7 . . 2 . 6 1 2 1 . . Failed 86 | . 6 . . 1 1 4 . 5 27 3 5 . . . . 1 . 1 12 2 . 1 2 4 1 8 2 . . Catastrophic 20 | . 2 . . . . 2 . 1 6 . . . . . . . . 1 3 . . . 1 . 1 2 1 . . Database Lockouts . | . . . . . . . . . . . . . . . . . . . . . . . . . . . . . . Manual 43 | . 7 . 1 2 . 1 . . 17 1 3 . . . . . . 1 6 2 . . . . 1 1 . . . Terminals 112 | . 19 . . 2 . 6 . 5 32 4 2 . 1 . 3 1 . 4 14 2 . 2 2 2 2 6 3 . . Fabricators . | . . . . . . . . . . . . . . . . . . . . . . . . . . . . . . Repair Stations 15 | . . . . . . . . . 8 . . . . . . . . . . . . . . 7 . . . . . Recycling Units 15 | . . . . . . . . . 6 . 3 . . . . 1 . . 5 . . . . . . . . . . Scanalyzers 27 | . . . . . . . . . 25 . . . . . . . . . . . . . . . . 2 . . . Garrison Access 12 | . . . . . 2 . 1 . 5 . . . . . . . . . . . . 1 . 1 . 2 . . . Terminal Hacks 79 | . 11 . 2 1 . 2 . . 14 1 . . 1 29 4 1 . 3 6 . . 1 . 1 1 . 1 . . Record 16 | . . . 1 . . . . . 2 . . . 1 7 4 . . 1 . . . . . . . . . . . Part Schematic 14 | . . . . . . . . . 1 . . . . 13 . . . . . . . . . . . . . . . Robot Schematic 7 | . . . . . . . . . 1 . . . . 6 . . . . . . . . . . . . . . . Robot Analysis 4 | . 2 . . 1 . . . . 1 . . . . . . . . . . . . . . . . . . . . Prototype ID Bank 11 | . 3 . . . . . . . 4 . . . . 3 . . . . 1 . . . . . . . . . . Open Door 1 | . . . . . . . . . . . . . . . . . . 1 . . . . . . . . . . . Open DSF 2 | . . . . . . . . . . . . . . . . 1 . . . . . . . . . . 1 . . Level Access Points 1 | . 1 . . . . . . . . . . . . . . . . . . . . . . . . . . . . Emergency Access Points 3 | . . . . . . 1 . . . 1 . . . . . . . . . . . . . . 1 . . . . Terminal Index 3 | . 1 . . . . . . . . . . . . . . . . 1 1 . . . . . . . . . . Garrison Index 1 | . . . . . . . . . 1 . . . . . . . . . . . . . . . . . . . . Unreport Threat 4 | . . . . . . . . . 2 . . . . . . . . . . . . 1 . 1 . . . . . Locate Traps 4 | . 2 . . . . . . . . . . . . . . . . . 2 . . . . . . . . . . Dispatch Records 1 | . . . . . . . . . 1 . . . . . . . . . . . . . . . . . . . . Recall Investigation 1 | . . . . . . . . . . . . . . . . . . . 1 . . . . . . . . . . Recall Reinforcements 1 | . . . . . . . . . . . . . . . . . . . 1 . . . . . . . . . . Hauler Manifests 1 | . 1 . . . . . . . . . . . . . . . . . . . . . . . . . . . . Registered Components 1 | . 1 . . . . . . . . . . . . . . . . . . . . . . . . . . . . Zone Layout 1 | . . . . . . . . . 1 . . . . . . . . . . . . . . . . . . . . Patrol Navigation 1 | . . . . . . 1 . . . . . . . . . . . . . . . . . . . . . . . Derelict Proto ID Bank 1 | . . . 1 . . . . . . . . . . . . . . . . . . . . . . . . . . Fabricator Hacks . | . . . . . . . . . . . . . . . . . . . . . . . . . . . . . . Repair Station Hacks 6 | . . . . . . . . . 2 . . . . . . . . . . . . . . 4 . . . . . Scan Component 5 | . . . . . . . . . 2 . . . . . . . . . . . . . . 3 . . . . . Repair 1 | . . . . . . . . . . . . . . . . . . . . . . . . 1 . . . . . Recycling Unit Hacks . | . . . . . . . . . . . . . . . . . . . . . . . . . . . . . . Scanalyzer 22 | . . . . . . . . . 22 . . . . . . . . . . . . . . . . . . . . Insert Component 11 | . . . . . . . . . 11 . . . . . . . . . . . . . . . . . . . . Analyze 11 | . . . . . . . . . 11 . . . . . . . . . . . . . . . . . . . . Garrison Access Hacks 11 | . . . . . 1 . 1 . 5 . . . . . . . . . . . . 1 . 1 . 2 . . . Unlock Access 5 | . . . . . 1 . 1 . 1 . . . . . . . . . . . . 1 . 1 . . . . . Seal Access 5 | . . . . . . . . . 3 . . . . . . . . . . . . . . . . 2 . . . Coupler Status 1 | . . . . . . . . . 1 . . . . . . . . . . . . . . . . . . . . Unauthorized Hacks 9 | . 2 . . . . . . . 6 . . . . . . . . . 1 . . . . . . . . . . Terminals 3 | . 2 . . . . . . . 1 . . . . . . . . . . . . . . . . . . . . Botnet 3 | . 2 . . . . . . . 1 . . . . . . . . . . . . . . . . . . . . Fabricators . | . . . . . . . . . . . . . . . . . . . . . . . . . . . . . . Repair Stations 1 | . . . . . . . . . 1 . . . . . . . . . . . . . . . . . . . . Mechanics 1 | . . . . . . . . . 1 . . . . . . . . . . . . . . . . . . . . Recycling Units 5 | . . . . . . . . . 4 . . . . . . . . . 1 . . . . . . . . . . Reject 2 | . . . . . . . . . 2 . . . . . . . . . . . . . . . . . . . . Mask 3 | . . . . . . . . . 2 . . . . . . . . . 1 . . . . . . . . . . Scanalyzers . | . . . . . . . . . . . . . . . . . . . . . . . . . . . . . . Garrison Access . | . . . . . . . . . . . . . . . . . . . . . . . . . . . . . . Data Cores Recovered 1 | . . . . . . . . . . . . . . . . . . . 1 . . . . . . . . . . Used . | . . . . . . . . . . . . . . . . . . . . . . . . . . . . . . Hacking Detections 59 | . 5 . . 1 1 3 1 2 17 1 2 . . . 1 1 . 1 7 2 . 1 1 3 1 6 2 . . Full Trace Events 3 | . . . . . . 1 . . 1 . . . . . 1 . . . . . . . . . . . . . . Feedback Events . | . . . . . . . . . . . . . . . . . . . . . . . . . . . . . . Feedback Blocked . | . . . . . . . . . . . . . . . . . . . . . . . . . . . . . . Robot Schematics Acquired 7 | . . . . . . . . . 1 . . . . 6 . . . . . . . . . . . . . . . Robots Built . | . . . . . . . . . . . . . . . . . . . . . . . . . . . . . . Authchips . | . . . . . . . . . . . . . . . . . . . . . . . . . . . . . . Time . | . . . . . . . . . . . . . . . . . . . . . . . . . . . . . . Total Robot Build Rating . | . . . . . . . . . . . . . . . . . . . . . . . . . . . . . . Part Schematics Acquired 24 | . . . . . . . . . 11 . . . . 13 . . . . . . . . . . . . . . . Parts Built . | . . . . . . . . . . . . . . . . . . . . . . . . . . . . . . Authchips . | . . . . . . . . . . . . . . . . . . . . . . . . . . . . . . Time . | . . . . . . . . . . . . . . . . . . . . . . . . . . . . . . Total Part Build Rating . | . . . . . . . . . . . . . . . . . . . . . . . . . . . . . . Parts Repaired 1 | . . . . . . . . . . . . . . . . . . . . . . . . 1 . . . . . Time 108 | . . . . . . . . . . . . . . . . . . . . . . . . 108 . . . . . Parts Recycled . | . . . . . . . . . . . . . . . . . . . . . . . . . . . . . . Recycled Matter . | . . . . . . . . . . . . . . . . . . . . . . . . . . . . . . Retrieved Matter . | . . . . . . . . . . . . . . . . . . . . . . . . . . . . . . Retrieved Components . | . . . . . . . . . . . . . . . . . . . . . . . . . . . . . . Parts Scanalyzed 11 | . . . . . . . . . 11 . . . . . . . . . . . . . . . . . . . . Part Schematics Acquired 10 | . . . . . . . . . 10 . . . . . . . . . . . . . . . . . . . . Parts Damaged 2 | . . . . . . . . . 2 . . . . . . . . . . . . . . . . . . . . Bothacking | -11 -10 -10 -10 -9 -8 -8 -8 -8 -7 -7 -6 -6 -6 -6 -5 -5 -5 -4 -4 -4 -4 -4 -4 -3 -3 -3 -2 -2 -1 ------------ Run | Yrd Mat Min Exi Min Mat Gar Mat Gar Fac Gar Fac Low Low Dat Pro Fac DSF Fac Ext Cet Arc Hub Gar Res Gar Res Res DSF Acc Used RIF Installer 6 | . . . . . . 1 . 2 . 1 . . . . . . . . . . . . 1 . 1 . . . . Hotswap 1 | . . . . . . . . . . . . . . . . . . . . . . . 1 . . . . . . Threat Obfuscator 2 | . . . . . . . . 2 . . . . . . . . . . . . . . . . . . . . . Robot Detection 1 | . . . . . . . . . . 1 . . . . . . . . . . . . . . . . . . . Structural Interface 1 | . . . . . . . . . . . . . . . . . . . . . . . . . 1 . . . . Robots Hacked 59 | . . . . . . 8 2 15 24 9 . . . . . . . . . . . . . . . 1 . . . Non-combat 15 | . . . . . . . . . 12 2 . . . . . . . . . . . . . . . 1 . . . Combat 44 | . . . . . . 8 2 15 12 7 . . . . . . . . . . . . . . . . . . . Robot Hacks Applied 78 | . . . . . . 8 2 24 33 10 . . . . . . . . . . . . . . . 1 . . . parse_system 16 | . . . . . . . . 11 3 2 . . . . . . . . . . . . . . . . . . . drop_inventory 1 | . . . . . . . . . 1 . . . . . . . . . . . . . . . . . . . . check_alert 1 | . . . . . . . . . 1 . . . . . . . . . . . . . . . . . . . . purge_threat 3 | . . . . . . . . . 3 . . . . . . . . . . . . . . . . . . . . reprogram_traps 1 | . . . . . . . . . 1 . . . . . . . . . . . . . . . . . . . . block_reporting 1 | . . . . . . . . . 1 . . . . . . . . . . . . . . . . . . . . summon_haulers 1 | . . . . . . . . . 1 . . . . . . . . . . . . . . . . . . . . clear_recycling 1 | . . . . . . . . . 1 . . . . . . . . . . . . . . . . . . . . map_route 3 | . . . . . . . . . 2 . . . . . . . . . . . . . . . . 1 . . . overload_power 1 | . . . . . . . . . 1 . . . . . . . . . . . . . . . . . . . . amplify_resonance 10 | . . . . . . . . . 7 3 . . . . . . . . . . . . . . . . . . . overwrite_iff 10 | . . . . . . 2 1 4 2 1 . . . . . . . . . . . . . . . . . . . streamctrl_high 1 | . . . . . . . . 1 . . . . . . . . . . . . . . . . . . . . . formatsys_low 7 | . . . . . . . . . 6 1 . . . . . . . . . . . . . . . . . . . formatsys_high 21 | . . . . . . 6 1 8 3 3 . . . . . . . . . . . . . . . . . . . Relay Couplers Released 66 | . . . . . . 23 . 18 . 14 . . . . . . . . . . . . . . 11 . . . . Machine Destruction 66 | . . . . . . 23 . 18 . 14 . . . . . . . . . . . . . . 11 . . . . Attached 34 | . . . . . . 5 . 7 11 6 1 . . . . . . 1 . . . . . . 1 1 . . 1 Fabnet Peak Effective % . | . . . . . . . . . . . . . . . . . . . . . . . . . . . . . . Robots Rewired 26 | . . . . . . 4 . 4 . 6 . . . . . . . . 12 . . . . . . . . . . Allies Hacked 3 | . . . . . . . . . 1 2 . . . . . . . . . . . . . . . . . . . Hacks Repelled . | . . . . . . . . . . . . . . . . . . . . . . . . . . . . . . Allies | -11 -10 -10 -10 -9 -8 -8 -8 -8 -7 -7 -6 -6 -6 -6 -5 -5 -5 -4 -4 -4 -4 -4 -4 -3 -3 -3 -2 -2 -1 -------- Run | Yrd Mat Min Exi Min Mat Gar Mat Gar Fac Gar Fac Low Low Dat Pro Fac DSF Fac Ext Cet Arc Hub Gar Res Gar Res Res DSF Acc Total Allies 71 | . . . . . . 12 2 17 11 11 . . . . . . . . 13 5 . . . . . . . . . Largest Group 18 | . . . . . . 9 10 15 18 16 14 12 8 7 7 2 2 2 13 17 15 . . . . . . . . Highest-Rated Group 1083 | . . . . . . 134 160 261 297 382 260 227 153 138 138 35 35 35 625 1083 1009 . . . . . . . . Highest-Rated Ally 159 | . . . . . . 21 21 22 32 108 32 32 32 32 32 22 22 22 159 153 146 . . . . . . . . Total Orders 143 | . . . . . . 8 5 10 68 13 4 2 1 . 4 2 11 . 9 4 2 . . . . . . . . STAY 79 | . . . . . . 4 2 5 47 6 2 . . . 1 1 3 . 5 2 1 . . . . . . . . ROAM 1 | . . . . . . . . 1 . . . . . . . . . . . . . . . . . . . . . FOLLOW 42 | . . . . . . 4 3 4 13 4 2 . . . 1 1 4 . 3 2 1 . . . . . . . . AID 14 | . . . . . . . . . 1 3 . 2 1 . 2 . 4 . 1 . . . . . . . . . . DROP 3 | . . . . . . . . . 3 . . . . . . . . . . . . . . . . . . . . PICKUP 4 | . . . . . . . . . 4 . . . . . . . . . . . . . . . . . . . . Ally Attacks 410 | . . . . . . 43 9 58 36 37 23 10 24 . 19 . . . 45 41 65 . . . . . . . . Total Damage 8948 | . . . . . . 765 109 806 680 622 406 96 386 . 385 . . . 1274 1255 2164 . . . . . . . . Kills 71 | . . . . . . 8 3 8 4 8 3 2 4 . 3 . . . 10 9 9 . . . . . . . . Allies Corrupted 1 | . . . . . . . . . . 1 . . . . . . . . . . . . . . . . . . . Allies Melted 1 | . . . . . . . . . . . . . . . . . . . . . 1 . . . . . . . . Intel | -11 -10 -10 -10 -9 -8 -8 -8 -8 -7 -7 -6 -6 -6 -6 -5 -5 -5 -4 -4 -4 -4 -4 -4 -3 -3 -3 -2 -2 -1 ------- Run | Yrd Mat Min Exi Min Mat Gar Mat Gar Fac Gar Fac Low Low Dat Pro Fac DSF Fac Ext Cet Arc Hub Gar Res Gar Res Res DSF Acc Robot Analysis Total 4 | . 2 . . 1 . . . . 1 . . . . . . . . . . . . . . . . . . . . Derelict Logs Recovered 5 | . . 1 . . . . . . . . . 2 . . 2 . . . . . . . . . . . . . . Drone Launches . | . . . . . . . . . . . . . . . . . . . . . . . . . . . . . . Drone Recoveries . | . . . . . . . . . . . . . . . . . . . . . . . . . . . . . . Exploration | -11 -10 -10 -10 -9 -8 -8 -8 -8 -7 -7 -6 -6 -6 -6 -5 -5 -5 -4 -4 -4 -4 -4 -4 -3 -3 -3 -2 -2 -1 ------------- Run | Yrd Mat Min Exi Min Mat Gar Mat Gar Fac Gar Fac Low Low Dat Pro Fac DSF Fac Ext Cet Arc Hub Gar Res Gar Res Res DSF Acc Turns Passed 28343 | 75 264 360 381 80 371 1388 148 1732 7746 1846 1090 649 768 116 904 405 189 134 2408 875 188 307 423 1329 732 2474 104 274 583 Spaces Moved 14482 | 43 111 148 221 44 159 766 102 958 4745 901 555 292 345 82 336 257 88 90 1098 267 105 168 159 525 347 1201 62 83 224 Core 46 | 7 . . . . . . . . . . . . . . . . . . . . . . . . . . . . 39 Treads 4452 | 36 111 148 117 . . . . . . 545 419 . . . . . . . . 241 105 168 159 525 347 1201 62 83 185 Legs 9984 | . . . 104 44 159 766 102 958 4745 356 136 292 345 82 336 257 88 90 1098 26 . . . . . . . . . Wheels . | . . . . . . . . . . . . . . . . . . . . . . . . . . . . . . Hover . | . . . . . . . . . . . . . . . . . . . . . . . . . . . . . . Flight . | . . . . . . . . . . . . . . . . . . . . . . . . . . . . . . Fastest Speed 45 | 50 160 240 90 90 90 45 90 45 110 125 160 140 140 140 140 140 140 140 140 140 160 160 160 160 160 160 166 166 50 Average Speed 147 | 142 203 240 169 90 105 141 90 141 123 146 182 217 216 140 220 140 140 140 140 158 160 160 160 160 160 163 166 172 152 Slowest Speed 360 | 160 240 240 240 90 170 170 90 180 196 160 360 250 250 140 250 140 140 140 250 240 160 160 160 160 160 166 166 173 270 Overloaded Moves 30 | . . . . . . 13 . 17 . . . . . . . . . . . . . . . . . . . . . Propulsion Burnouts . | . . . . . . . . . . . . . . . . . . . . . . . . . . . . . . Robots Hopped . | . . . . . . . . . . . . . . . . . . . . . . . . . . . . . . Cave-ins Triggered . | . . . . . . . . . . . . . . . . . . . . . . . . . . . . . . Exploration Rate (%) 42 | 3 24 46 60 8 20 83 12 76 73 62 10 57 62 68 57 7 87 4 97 74 88 25 28 16 53 33 2 39 5 Regions Visited 29 Branch Regions 11 Pre-discovered Areas 4 | . . 1 1 . . . . . . . . . . 1 1 . . . . . . . . . . . . . . Known Exits Taken 8 | . . . . . 1 . 1 . 1 . . . . . . 1 . . . . . 1 . 1 . 1 1 . . Unknown Exits Taken 14 | 1 1 1 1 1 . . . . . . 1 1 1 1 1 . . 1 1 1 1 . . . . . . . . Scrap Searched 8 | . . 1 . . . . . . . . . 2 1 . 4 . . . . . . . . . . . . . . Spaces Dug 25 | . . . . . . . . 1 19 . . . . . . . . . . . . 1 . . . 4 . . . Terrain Destroyed 630 | . . . . . . . . 1 51 35 4 46 80 . 53 1 2 . 47 13 6 14 2 39 12 19 . 7 198 Melee 1 | . . . . . . . . 1 . . . . . . . . . . . . . . . . . . . . . Projectile 163 | . . . . . . . . . 8 3 4 1 1 . 12 1 2 . 47 13 6 14 . 13 7 18 . 6 7 AOE 455 | . . . . . . . . . 43 32 . 45 79 . 41 . . . . . . . . 21 4 . . . 190 Terrain Rammed . | . . . . . . . . . . . . . . . . . . . . . . . . . . . . . . Walls Destroyed . | . . . . . . . . . . . . . . . . . . . . . . . . . . . . . . Machines Disabled . | . . . . . . . . . . . . . . . . . . . . . . . . . . . . . . Actions | -11 -10 -10 -10 -9 -8 -8 -8 -8 -7 -7 -6 -6 -6 -6 -5 -5 -5 -4 -4 -4 -4 -4 -4 -3 -3 -3 -2 -2 -1 --------- Run | Yrd Mat Min Exi Min Mat Gar Mat Gar Fac Gar Fac Low Low Dat Pro Fac DSF Fac Ext Cet Arc Hub Gar Res Gar Res Res DSF Acc Total 19770 | 54 125 151 226 61 353 955 147 1233 6339 1318 625 301 355 83 408 280 113 98 1847 663 116 187 279 848 457 1524 63 189 372 Wait 3246 | . . . . 3 173 36 35 72 1278 166 41 . 4 2 15 2 . . 557 327 1 . 70 177 30 133 . 78 46 Move 14457 | 42 110 147 220 43 159 765 102 956 4745 899 554 291 344 81 335 256 87 89 1097 266 104 168 158 525 346 1200 62 82 224 Hop . | . . . . . . . . . . . . . . . . . . . . . . . . . . . . . . Pick Up 244 | 6 1 2 3 2 2 18 . 21 39 48 4 1 1 . 5 4 3 . 8 12 1 4 8 8 10 20 . 5 8 Fast Attach 115 | 6 1 . . 1 7 . . 7 12 15 5 . . . 3 . . 4 1 6 . 1 2 9 3 21 . 1 10 Attach 101 | . . . . . 1 5 . 6 16 8 1 1 . . 1 2 2 1 3 3 3 . 4 11 4 5 1 3 20 Detach 11 | . . . . . . . . . 1 2 . 2 1 . 1 . . . 1 . . . . . . . . . 3 Swap 161 | . . . 2 1 3 11 1 8 36 19 6 2 . . 2 6 1 . 6 6 1 3 8 10 8 14 . 3 4 Drop 234 | . . . 1 . 5 6 1 15 29 55 10 1 1 . 6 2 2 4 9 18 1 3 8 7 12 28 . 2 8 Fire 840 | . 13 . . 11 3 42 5 29 178 73 4 3 4 . 40 8 17 . 51 25 4 8 21 97 44 96 . 15 49 Melee 145 | . . . . . . 40 3 73 . 29 . . . . . . . . . . . . . . . . . . . Ram . | . . . . . . . . . . . . . . . . . . . . . . . . . . . . . . Kick 5 | . . . . . . . . . 5 . . . . . . . . . . . . . . . . . . . . Crush 13 | . . 2 . . . . . . . . . . . . . . . . . . . . . 4 . 7 . . . Escape Stasis 80 | . . . . . . 30 . 35 . . . . . . . . . . 15 . . . . . . . . . . Rewire 117 | . . . . . . 1 . 11 . 4 . . . . . . 1 . 99 . 1 . . . . . . . . Trap 1 | . . . . . . 1 . . . . . . . . . . . . . . . . . . . . . . . Miscellaneous . | . . . . . . . . . . . . . . . . . . . . . . . . . . . . . . Route ------- -11/Scrapyard -10/Materials (discovered 4 exits: Mat x3 / [*Min]) -10/Mines -10/Exiles -9/Mines -8/Materials -8/Garrison (discovered 3 exits: *Mat x3) -8/Materials -8/Garrison (discovered 3 exits: *Fac x3) -7/Factory (discovered 5 exits: *Fac / [*Sto x2] / [*Low] / Gar) -7/Garrison (discovered 2 exits: *Fac x2) -6/Factory (discovered 2 exits: *Fac / [*Low]) -6/Lower Caves -6/Lower Caves -6/Data Miner -5/Proximity Caves -5/Factory (discovered 2 exits: Fac / DSF) -5/DSF -4/Factory -4/Extension (discovered 2 exits: *Res / *Cet) -4/Cetus (discovered 2 exits: *Res / [*Arc]) -4/Archives (discovered 2 exits: *Res / *Hub) -4/Hub_04(d) -4/Garrison -3/Research -3/Garrison -3/Research (discovered 3 exits: *Res / [Arm] / [*Qua]) -2/Research -2/DSF -1/Access History --------- Turn | Location | Event 10 | -11/Scrapyard | Discovered new exit (range 16) 76 | -11/Scrapyard | Entered Materials 151 | -10/Materials | Identified exit to Materials 247 | -10/Materials | Discovered new exit (range 16) 313 | -10/Materials | Build established: Mutant 340 | -10/Materials | Entered Mines 657 | -10/Mines | Learned location of Recycling (-7) 690 | -10/Mines | Deemed a non-threat by the Exiles lab entrance 690 | -10/Mines | Discovered new exit (range 5) 700 | -10/Mines | Entered Exiles 765 | -10/Exiles | Met 8R-AWN 799 | -10/Exiles | Met EX-HEX 866 | -10/Exiles | Met EX-BIN 900 | -10/Exiles | Aligned with FarCom system 902 | -10/Exiles | Given EX-Vault access code 957 | -10/Exiles | Opened EX-Vault 976 | -10/Exiles | Found Lightpack 2.0 980 | -10/Exiles | Found Potential Leg 983 | -10/Exiles | Found Potential Leg 1008 | -10/Exiles | Warned to stay clear of 0b10 Research branches 1035 | -10/Exiles | Met EX-DEC 1036 | -10/Exiles | Learned location of Zion (-7) 1070 | -10/Exiles | Discovered new exit (range 10) 1081 | -10/Exiles | Left Exiles lab with Potential Leg 1081 | -10/Exiles | Entered Mines 1118 | -9/Mines | Met a Derelict bent on vengeance 1151 | -9/Mines | Discovered new exit (range 12) 1161 | -9/Mines | Entered Materials 1161 | -8/Materials | Evolved 4 slots: Utility x2, Weapon x2 1211 | -8/Materials | Garrison activated, responded to threat 1482 | -8/Materials | Met 7R-MNS 1532 | -8/Materials | Identified exit to Garrison 1532 | -8/Materials | Entered Garrison 1546 | -8/Garrison | Triggered checkpoint 1632 | -8/Garrison | Triggered checkpoint 1657 | -8/Garrison | Garrison Relay disabled 1743 | -8/Garrison | Triggered checkpoint 1760 | -8/Garrison | Triggered checkpoint 1854 | -8/Garrison | Installed Relay Interface Framework 1924 | -8/Garrison | Discovered new exit (range 12) 1968 | -8/Garrison | Triggered checkpoint 1970 | -8/Garrison | Garrison Relay disabled 2124 | -8/Garrison | Triggered checkpoint 2153 | -8/Garrison | Garrison Relay disabled 2266 | -8/Garrison | Triggered checkpoint 2354 | -8/Garrison | Build established: Bothacker-Skirmisher 2414 | -8/Garrison | Triggered checkpoint 2436 | -8/Garrison | Garrison Relay disabled 2479 | -8/Garrison | Discovered new exit (range 10) 2573 | -8/Garrison | Lost 4 parts (1p3w) 2654 | -8/Garrison | Triggered checkpoint 2774 | -8/Garrison | Discovered new exit (range 10) 2804 | -8/Garrison | Triggered checkpoint 2846 | -8/Garrison | Garrison Relay disabled 2920 | -8/Garrison | Entered Materials 2920 | -8/Materials | Accompanied by 8 allies 3068 | -8/Materials | Identified exit to Garrison 3068 | -8/Materials | Entered Garrison 3068 | -8/Garrison | Accompanied by 9 allies 3104 | -8/Garrison | Triggered checkpoint 3114 | -8/Garrison | Garrison Relay disabled 3144 | -8/Garrison | Triggered checkpoint 3160 | -8/Garrison | Triggered checkpoint 3167 | -8/Garrison | Core integrity fell below 50% 3196 | -8/Garrison | Triggered checkpoint 3215 | -8/Garrison | Triggered checkpoint 3262 | -8/Garrison | Lost 3 allies 3282 | -8/Garrison | Lost 4 parts (1p1u2w) 3326 | -8/Garrison | Triggered checkpoint 3362 | -8/Garrison | Discovered new exit (range 13) 3372 | -8/Garrison | Lost 3 allies 3384 | -8/Garrison | Triggered checkpoint 3406 | -8/Garrison | Garrison Relay disabled 3502 | -8/Garrison | Triggered checkpoint 3528 | -8/Garrison | Garrison Relay disabled 3560 | -8/Garrison | Discovered new exit (range 12) 3562 | -8/Garrison | Build established: Bothacker-Gladiator 3679 | -8/Garrison | Expanded RIF knowledge: Threat Obfuscation 3841 | -8/Garrison | Discovered new exit (range 10) 3881 | -8/Garrison | Expanded RIF knowledge: Threat Obfuscation 3904 | -8/Garrison | Triggered checkpoint 4122 | -8/Garrison | Triggered checkpoint 4152 | -8/Garrison | Core integrity fell below 20% 4214 | -8/Garrison | Garrison Relay disabled 4334 | -8/Garrison | Triggered checkpoint 4355 | -8/Garrison | Garrison Relay disabled 4441 | -8/Garrison | Build established: Commander-Gladiator 4761 | -8/Garrison | Build established: Bothacker-Gladiator 4800 | -8/Garrison | Entered Factory 4800 | -7/Factory | Accompanied by 11 allies 4800 | -7/Factory | Evolved 2 slots: Propulsion x2 5910 | -7/Factory | Build established: Bothacker-Skirmisher 7331 | -7/Factory | Discovered new exit (range 5) 7855 | -7/Factory | Discovered new exit (range 13) 8080 | -7/Factory | Build established: Commander-Skirmisher 8213 | -7/Factory | Lost 3 allies 8389 | -7/Factory | Garrison activated, responded to threat 8443 | -7/Factory | Discovered new exit (range 12) 8497 | -7/Factory | Lost 6 parts (2n1u3w) 10188 | -7/Factory | Discovered new exit (range 6) 12546 | -7/Factory | Identified exit to Garrison 12546 | -7/Factory | Entered Garrison 12546 | -7/Garrison | Accompanied by 13 allies 12554 | -7/Garrison | Triggered checkpoint 12564 | -7/Garrison | Triggered checkpoint 12624 | -7/Garrison | Triggered checkpoint 12641 | -7/Garrison | Garrison Relay disabled 12662 | -7/Garrison | Lost 3 parts (2n1w) 12742 | -7/Garrison | Expanded RIF knowledge: Robot Detection 12978 | -7/Garrison | Triggered checkpoint 13050 | -7/Garrison | Triggered checkpoint 13064 | -7/Garrison | Garrison Relay disabled 13103 | -7/Garrison | Discovered new exit (range 11) 13600 | -7/Garrison | Triggered checkpoint 13648 | -7/Garrison | Triggered checkpoint 13708 | -7/Garrison | Lost 3 allies 13764 | -7/Garrison | Found Prototype Launcher 13767 | -7/Garrison | Identified Scatter Rocket Array 13780 | -7/Garrison | Found Prototype Processor 13780 | -7/Garrison | Identified Exp. Targeting Computer 13840 | -7/Garrison | Found Scatter Rocket Array 13859 | -7/Garrison | Found Exp. Targeting Computer 13886 | -7/Garrison | Triggered checkpoint 14117 | -7/Garrison | Build established: Commander-Gunner 14244 | -7/Garrison | Discovered new exit (range 10) 14299 | -7/Garrison | Garrison Relay disabled 14392 | -7/Garrison | Entered Factory 14392 | -6/Factory | Accompanied by 14 allies 14392 | -6/Factory | Evolved 2 slots: Utility x2 15032 | -6/Factory | Discovered new exit (range 16) 15059 | -6/Factory | Discovered new exit (range 9) 15482 | -6/Factory | Entered Lower Caves 15482 | -6/Lower Caves | Accompanied by 12 allies 15610 | -6/Lower Caves | Learned 8 Factory zone layouts 15879 | -6/Lower Caves | Build established: Bothacker-Gunner 15885 | -6/Lower Caves | Learned Factory stockpile data 16068 | -6/Lower Caves | Discovered new exit (range 8) 16131 | -6/Lower Caves | Entered another Lower Caves area 16131 | -6/Lower Caves | Accompanied by 8 allies 16861 | -6/Lower Caves | Discovered new exit (range 15) 16899 | -6/Lower Caves | Entered Data Miner 16899 | -6/Data Miner | Accompanied by 7 allies 16899 | -6/Data Miner | Discovered new exit (range 6) 16926 | -6/Data Miner | Met Data Miner 16953 | -6/Data Miner | Learned location of Section 7 (-3) 16953 | -6/Data Miner | Acquired the access code to Warlord's prototype stash 16974 | -6/Data Miner | Received God Mode back door access code from Data Miner 17015 | -6/Data Miner | Entered Proximity Caves 17015 | -5/Proximity Caves | Accompanied by 7 allies 17051 | -5/Proximity Caves | Found Alien Artifact 17080 | -5/Proximity Caves | Learned Factory emergency access door positions 17131 | -5/Proximity Caves | Attracted the attention of an 0b10 base 17163 | -5/Proximity Caves | Destroyed 11 combat bots 17213 | -5/Proximity Caves | Learned Factory garrison access intel 17334 | -5/Proximity Caves | Lost 3 allies 17600 | -5/Proximity Caves | Build established: Gunner 17746 | -5/Proximity Caves | Spotted B-75 Beast 17758 | -5/Proximity Caves | Discovered new exit (range 15) 17762 | -5/Proximity Caves | Destroyed B-75 Beast 17919 | -5/Proximity Caves | Entered Factory 17919 | -5/Factory | Accompanied by 2 allies 17919 | -5/Factory | Evolved 2 slots: Propulsion x2 17920 | -5/Factory | Identified exit to Factory 17923 | -5/Factory | Loaded intel: 4 garrison access locations 18322 | -5/Factory | Identified exit to DSF 18324 | -5/Factory | Entered DSF 18324 | -5/DSF | Accompanied by 2 allies 18366 | -5/DSF | Additional patrols routed to DSF 18482 | -5/DSF | Sterilization system engaged 18495 | -5/DSF | Discovered exit to Factory (range 14) 18502 | -5/DSF | Ambient heat levels rising (+10) 18513 | -5/DSF | Entered Factory 18513 | -4/Factory | Accompanied by 2 allies 18513 | -4/Factory | Evolved 2 slots: Power x1, Utility x1 18636 | -4/Factory | Discovered new exit (range 10) 18647 | -4/Factory | Entered Extension 18647 | -4/Extension | Accompanied by 2 allies 18763 | -4/Extension | Build established: Tank 19133 | -4/Extension | Build established: Commander-Tank 19675 | -4/Extension | Spotted B-86 Titan 19681 | -4/Extension | Allies destroyed B-86 Titan 19695 | -4/Extension | Spotted B-86 Titan 19702 | -4/Extension | Allies destroyed B-86 Titan 19808 | -4/Extension | Rescued A7 20410 | -4/Extension | Build established: Commander-Skirmisher 20501 | -4/Extension | Discovered new exit (range 15) 20502 | -4/Extension | Discovered new exit (range 15) 21055 | -4/Extension | Entered Cetus 21055 | -4/Cetus | Accompanied by 12 allies (A7) 21060 | -4/Cetus | Acquired a Cetus Manufacturing Module code from A7 21081 | -4/Cetus | Destroyed Cetus Guard 21089 | -4/Cetus | Spotted Cetus Guard 21092 | -4/Cetus | Destroyed Cetus Guard 21113 | -4/Cetus | Destroyed Cetus Guard 21305 | -4/Cetus | Escorted A7 to Cetus Mainframe 21317 | -4/Cetus | Started Cetus Manufacturing Module 21342 | -4/Cetus | Manufactured an Enhanced Grunt 21367 | -4/Cetus | Manufactured an Enhanced Grunt 21392 | -4/Cetus | Manufactured an Enhanced Grunt 21417 | -4/Cetus | Manufactured an Enhanced Grunt 21433 | -4/Cetus | Build established: Commander-Tank 21442 | -4/Cetus | Manufactured an Enhanced Grunt 21685 | -4/Cetus | Discovered new exit (range 16) 21717 | -4/Cetus | Destroyed Cetus Guard 21722 | -4/Cetus | Spotted Cetus Guard 21731 | -4/Cetus | Destroyed Cetus Guard 21731 | -4/Cetus | Spotted Cetus Guard 21738 | -4/Cetus | Destroyed Cetus Guard 21752 | -4/Cetus | Discovered new exit (range 15) 21762 | -4/Cetus | Met Revision 17 21783 | -4/Cetus | System corruption reached 10% 21848 | -4/Cetus | Cetus Manufacturing Module disabled 21930 | -4/Cetus | Entered Archives 21930 | -4/Archives | Accompanied by 15 allies (A7) 21935 | -4/Archives | Received a hacking code to weaken MAIN.C 21953 | -4/Archives | Met Zhirov 21959 | -4/Archives | Reinforcements dispatched to Archives 22004 | -4/Archives | Reinforcements dispatched to Archives 22006 | -4/Archives | Zhirov warped through subspace 22006 | -4/Archives | Discovered new exit (range 16) 22018 | -4/Archives | Found Adv. Powered Armor 22024 | -4/Archives | Zhirov detonated Archives 22052 | -4/Archives | Discovered new exit (range 16) 22055 | -4/Archives | Lost 3 parts (1u2w) 22055 | -4/Archives | Lost 14 allies 22118 | -4/Archives | Entered Hub_04(d) 22425 | -4/Hub_04(d) | Identified exit to Garrison 22425 | -4/Hub_04(d) | Entered Garrison 22523 | -4/Garrison | Spotted B-86 Titan 22549 | -4/Garrison | Destroyed B-86 Titan 22624 | -4/Garrison | Destroyed 8 combat bots 22790 | -4/Garrison | Discovered new exit (range 10) 22827 | -4/Garrison | Expanded RIF knowledge: Hotswap 22848 | -4/Garrison | Entered Research 22848 | -3/Research | Evolved 2 slots: Utility x2 23069 | -3/Research | Build established: Scavenger-Gunner 23179 | -3/Research | Destroyed B-86 Titan 23938 | -3/Research | Repaired Centrium Heavy Treads 24112 | -3/Research | Garrison activated, responded to threat 24177 | -3/Research | Identified exit to Garrison 24177 | -3/Research | Entered Garrison 24186 | -3/Garrison | Lost 3 parts (2u1w) 24231 | -3/Garrison | Triggered checkpoint 24299 | -3/Garrison | Expanded RIF knowledge: Structural Interface 24435 | -3/Garrison | Build established: Scavenger-Tank 24439 | -3/Garrison | Triggered checkpoint 24444 | -3/Garrison | Spotted B-86 Titan 24452 | -3/Garrison | Triggered checkpoint 24496 | -3/Garrison | Destroyed B-86 Titan 24527 | -3/Garrison | Triggered checkpoint 24738 | -3/Garrison | Garrison Relay disabled 24775 | -3/Garrison | Discovered new exit (range 15) 24787 | -3/Garrison | Garrison Relay disabled 24909 | -3/Garrison | Entered Research 25357 | -3/Research | Build established: Bothacker-Skirmisher 25860 | -3/Research | Discovered new exit (range 19) 25865 | -3/Research | System corruption reached 10% 26079 | -3/Research | Discovered new exit (range 20) 26468 | -3/Research | Discovered new exit (range 18) 26505 | -3/Research | Found Prototype Launcher 26506 | -3/Research | Identified Tactical Quantum Warhead 26529 | -3/Research | Build established: Scavenger-Skirmisher 27381 | -3/Research | Identified exit to Research 27383 | -3/Research | Entered another Research area 27383 | -2/Research | Evolved 2 slots: Utility x1, Weapon x1 27487 | -2/Research | Identified exit to DSF 27487 | -2/Research | Entered DSF 27507 | -2/DSF | Additional patrols routed to DSF 27741 | -2/DSF | Discovered new exit (range 11) 27761 | -2/DSF | Entered Access 27761 | -1/Access | Evolved 2 slots: Utility x1, Weapon x1 28033 | -1/Access | Build established: Scavenger-Executioner 28144 | -1/Access | Energy Cycler disabled 28230 | -1/Access | Lost 14 parts (3n7u4w) 28313 | -1/Access | Core integrity fell below 50% 28318 | -1/Access | Destroyed 13 combat bots 28334 | -1/Access | Core integrity fell below 20% 28344 | -1/Access | Destroyed by P-80 Master with Gamma Rifle Last Messages --------------- 28335_ P-80 Master destroyed. 28335_ U-05 Engineer lays Concrete. 28335_ Hvy. Linear Accelerator destroyed. 28335_ U-05 Engineer lays Concrete. 28338_ U-05 Engineer builds a Wall. 28338_ K-01 Serf collects debris. 28338_ Acquired Relay Coupler [NC]. 28338_ U-05 Engineer lays Concrete. 28339_ The unstable cave ceiling collapses. 28339_ U-05 Engineer lays Concrete. 28340_ System corrupted: Matter fused (-5). 28340_ U-05 Engineer lays Concrete. 28342_ The unstable cave ceiling collapses. 28342_ U-05 Engineer lays Concrete. 28342_ R-10 Processor collects Lyr. Heavy Armor Plating. 28343_ U-05 Engineer lays Concrete. 28343_ Acquired Imp. Remote Datajack. 28343_ U-05 Engineer builds a Wall. 28344_ U-05 Engineer lays Concrete. Map ----- +----------------------------------------------------+ | ???????# # *** # ? ? + " | | ???????# """"""" # ** # ###?######?##### "" | | ???????# """"""" # # ####?########### " | | ???????# # # ######?######### | | ???????# + = # ################ | | ???????# # # ################ | | ???????# # + ######## | | ???????#######++### # # ####### | | ??????? ? # ########### ######## | | ??????? # ####### | | ?????? # = ###### | | ????? ? ? # ! ###### | | ?????? ######## | | ????? # t |! # ###### | | ???####+### ! ##### | | ???# % %= % | | ???# ####=*! % p =!up #### | | ???# # # ===! %= % R # # #### | | ???# # # ! = % ### | | ???# #### = =% # | | ??## ####= % u | | ???# ## # ! # # | | ? ########### * ! ] # # | | ? ###### # ! ### | | ? ######## !!!!! # ## ### | | ?? ?######## !!!@= ## # # ### | | ?? ###### # =[!%* # # ### ####### | | ??? ##### #u !!%# # # # ####?#### | | ? ? ######## *; # ## ######### | | ??? ############### =%######## # ########### | | ? ? ############### !=######## ############ | | ? ? # """T""" # ####################??### | | ?? ?# """ """ # ######################### | | ????# ? # #####################?### | | ????# ? # ######################### | | ????? ?? # p######################### | | ?????? w/ ######################### | | ????# ? # #################?#####?# | | ??????????? # pp ######################### | | ?????????#?######## ######################### | | ????? ????######### #############???????##### | | ?????? ?? #?####### ############??#??#?#???## | | ?????"?????#?###?## #########???????#???????? | | ????????????##?##?? ########????????????????? | | ??????????#???#???# ?##??#??????????????????? | | ??????????????????# ?????????????????????????? | | ???????????????#???? ? ?????????????????????????? | | ???????????#?????????????????????????????????????? | | ???????????????????????????? ????????????????????? | | ???????????????#?????????#???????????????????????? | +----------------------------------------------------+ Best States ------------- Heat Dissipation 142 Coolant Potential 80 Energy Generation 57 Energy Capacity 820 Matter Stores 300 Matter Capacity 300 Sight Range 18 Terrain Scan Range 20 Terrain Scan Density 210 Jamming Range 16 Power Amplification 30 EM Shielding 3 Armor Coverage 1700 Resistance: KI 25 Resistance: TH 30 Weapon Cycling 25 Evasion (%) 60 Targeting Accuracy 24 Melee Accuracy 10 Target Analysis 8 Core Analysis 6 Recoil Reduction 6 Salvage Targeting 5 Offensive Hacking 10 Defensive Hacking 10 Relay Coupler Types 2 Relay Coupler Value 63 Authchip Count 2 Item Schematics ----------------- Hvy. Phase Cannon | -7/Factory | Hacked Hrd. Medium Armor Plating | -7/Factory | Scanalyzed Imp. Cooling System | -7/Factory | Scanalyzed Powered Hammer | -7/Factory | Scanalyzed Transmission Jammer | -7/Factory | Scanalyzed Lyr. Light Armor Plating | -7/Factory | Scanalyzed Com. Ion Cannon | -7/Factory | Scanalyzed Grenade Launcher | -7/Factory | Scanalyzed Gauss Rifle | -7/Factory | Scanalyzed System Restoration Module | -7/Factory | Scanalyzed Adv. Terrain Scan Processor | -7/Factory | Scanalyzed Combat Drone Bay | -6/Data Miner | Free Lgt. Regenerative Plating | -6/Data Miner | Free Cld. Gravmag System | -6/Data Miner | Free Exp. Heat Sink | -6/Data Miner | Free Hvy. Proton Cannon | -6/Data Miner | Free Imp. Antigrav System | -6/Data Miner | Free Adv. Focal Shield | -6/Data Miner | Free Hardcell Cannon | -6/Data Miner | Free Adv. Hacking Suite | -6/Data Miner | Free Hvy. Disruptor Cannon | -6/Data Miner | Free Field Propulsion Array | -6/Data Miner | Free Biometal Medium Treads | -6/Data Miner | Free Linear Accelerator | -6/Data Miner | Free Robot Schematics ------------------ B-48 Gladiator | -7/Factory | Hacked Y-64 Sentinel | -6/Data Miner | Free E-15 Imp | -6/Data Miner | Free S-27 Virus | -6/Data Miner | Free Y-54 Guardian | -6/Data Miner | Free B-60 Warrior | -6/Data Miner | Free G-50 Soldier | -6/Data Miner | Free Fabricated ------------ Nothing Alien Tech Used ----------------- None Achievements -------------- None Challenges ------------ None Game ------ Seed SupercompositeCloakFragment Manual? 0 Play Time 03:39:47 Cumulative 325.3 hours Start 2024.05.05 @ 04:30:53 End 2024.05.05 @ 11:18:57 Sessions 3 Manual Loads 0 Difficulty Rogue Special Mode None Game No. 234 Rogue 234 Adventurer 0 Explorer 0 Win Type - Total 12 Types 8/0/3/1/0/0/0/0/0 Lore% 80 Gallery% 86 Achievement% 73 Wizard Run 0 Options --------- Layout 2 ASCII 1 Keyboard 0 Movement Mouse Keybinds 0 Fullscreen 2 Font 24/Smallcaps Map View 50x44 Zoom Use 0% Tactical HUD 1 Map Filters NONE Filters NONE Steam 1 RUN: de86e25b-52c5-490b-9198-2ba657c37b93